Cogmind - Beta 10.2 @@@ ROGUE MODE // 2021.06.09 @ 05:36:44 Player: Exp. Geonium Core Result: Destroyed by G-73 Enforcer with Phase Gun Performance ------------- Evolutions (9) 4500 Regions Visited (23) 4600 Robots Destroyed (521) 2605 Value Destroyed (24866) 24866 Prototype IDs (40) 800 Alien Tech Used (0) 0 Bonus (18042) 18042 TOTAL SCORE: 55413 Bonus ------- Triggered High Security 2500 High Alert Combat Kills 12888 Follower Combat Kills 434 Entered Garrisons 800 Used RIF Installer 1500 Network Hubs Disabled 200 Aligned with FarCom 300 Met R17 at Cetus 500 Friendly Fire -1080 Cogmind --------- Core Integrity 0/1600 Matter 266/300 Energy 98/100 System Corruption 6% Temperature Cool (0) Movement Core (50) Location -1/Access Parts ------- > --- POWER (2) -------- (None) > --- PROPULSION (15) -- (None) > --- UTILITY (4) ------ (None) > --- WEAPON (4) ------- (None) > --- INVENTORY (4) ---- Power Amplifier Experimental Energy Well (1000) Peak State ------------ > --- POWER ------------ Neutrino Core Quantum Reactor > --- PROPULSION ------- Advanced Heavy Treads Biometal Heavy Treads Biometal Heavy Treads Biometal Heavy Treads Advanced Heavy Siege Treads Advanced Heavy Siege Treads Advanced Heavy Siege Treads High-density Centrium Wheel > --- UTILITY ---------- Advanced Heat Sink Advanced Core Analyzer Quantum Capacitor > --- WEAPON ----------- Enhanced Nova Cannon Enhanced Nova Cannon Hardcell Cannon Mini Smartbomb Launcher > --- INVENTORY -------- Light Antimatter Reactor Power Amplifier Experimental Energy Well [Rating: 209] Favorites ----------- Power Quantum Reactor Engine Light Angular Momentum Engine Power Core Neutrino Core Reactor Quantum Reactor Propulsion Armored Medium Treads Treads Armored Medium Treads Leg Flexi-carbon Leg Wheel High-density Centrium Wheel Hover Unit Antigrav System Flight Unit Impulse Thruster Array Utility High-capacity Storage Unit Device Advanced Heat Sink Storage High-capacity Storage Unit Processor Improved Targeting Computer Hackware Hacking Suite Protection Centrium Medium Armor Plating Weapon KE Penetrator Energy Gun Heavy Dispersion Rifle Energy Cannon Enhanced Nova Cannon Ballistic Gun KE Penetrator Ballistic Cannon Hardcell Cannon Launcher Mini Smartbomb Launcher Build | -11 -10 -10 -10 -9 -8 -8 -8 -7 -6 -6 -6 -6 -6 -5 -5 -5 -5 -4 -4 -4 -3 -2 -1 ------- Run | Scr Mat Min Exi Min Mat Gar Mat Fac Fac Ext Cet Arc Hub Fac Gar Fac Gar Fac Gar Fac Res Res Acc Slots Evolved 18 | . . . . . 4 . . 2 2 . . . . 2 . . . 2 . . 2 2 2 Power 1 | . . . . . . . . . . . . . . . . . . . . . 1 . . Propulsion 13 | . . . . . 1 . . 1 2 . . . . 2 . . . 2 . . 1 2 2 Utility 2 | . . . . . 1 . . 1 . . . . . . . . . . . . . . . Weapon 2 | . . . . . 2 . . . . . . . . . . . . . . . . . . Parts Attached 279 | 2 . . 4 6 8 5 5 11 10 20 16 . . 17 2 2 16 57 2 41 39 6 10 Power 17 | . . . . 1 1 . . 1 1 . 1 . . . 1 . . 2 . 1 5 1 2 Engine 4 | . . . . 1 . . . 1 1 . . . . . . . . . . . 1 . . Core 4 | . . . . . 1 . . . . . . . . . . . . . . . 3 . . Reactor 9 | . . . . . . . . . . . 1 . . . 1 . . 2 . 1 1 1 2 Propulsion 116 | 2 . . . 1 3 . 2 4 6 9 2 . . 5 . 2 8 28 2 16 19 2 5 Treads 74 | 2 . . . 1 3 . 2 4 5 9 2 . . 5 . 2 4 15 . 4 9 2 5 Leg 28 | . . . . . . . . . 1 . . . . . . . 4 11 2 6 4 . . Wheel 12 | . . . . . . . . . . . . . . . . . . 2 . 5 5 . . Hover 1 | . . . . . . . . . . . . . . . . . . . . 1 . . . Flight 1 | . . . . . . . . . . . . . . . . . . . . . 1 . . Utility 64 | . . . 4 1 3 1 . 6 3 4 7 . . 6 . . 3 7 . 7 9 2 1 Device 27 | . . . . . 1 . . 1 2 1 1 . . 1 . . 2 4 . 6 5 2 1 Storage 8 | . . . 4 . 1 . . 1 . . . . . . . . . . . . 2 . . Processor 10 | . . . . . . 1 . 2 1 . . . . 1 . . . 2 . 1 2 . . Hackware 2 | . . . . . 1 . . 1 . . . . . . . . . . . . . . . Protection 17 | . . . . 1 . . . 1 . 3 6 . . 4 . . 1 1 . . . . . Artifact . | . . . . . . . . . . . . . . . . . . . . . . . . Weapon 82 | . . . . 3 1 4 3 . . 7 6 . . 6 1 . 5 20 . 17 6 1 2 Energy Gun 10 | . . . . 2 . . . . . . 2 . . . . . . 1 . 2 3 . . Energy Cannon 4 | . . . . 1 . . . . . . . . . . . . . . . 1 . 1 1 Ballistic Gun 52 | . . . . . 1 2 3 . . 5 4 . . 6 1 . 4 14 . 11 . . 1 Ballistic Cannon 3 | . . . . . . . . . . 1 . . . . . . . . . . 2 . . Launcher 13 | . . . . . . 2 . . . 1 . . . . . . 1 5 . 3 1 . . Special Weapon . | . . . . . . . . . . . . . . . . . . . . . . . . Impact Weapon . | . . . . . . . . . . . . . . . . . . . . . . . . Slashing Weapon . | . . . . . . . . . . . . . . . . . . . . . . . . Piercing Weapon . | . . . . . . . . . . . . . . . . . . . . . . . . Special Melee Weapon . | . . . . . . . . . . . . . . . . . . . . . . . . Unidentified Prototypes 17 | . . . . . . . 1 . . . 4 . . 3 . . . 3 . 1 4 1 . Parts Lost 104 | . . . . 2 . . . 2 2 2 1 . . . 1 . 4 34 3 30 2 1 20 Power 6 | . . . . . . . . 1 . . . . . . . . . . 1 . . . 4 Propulsion 55 | . . . . . . . . . 2 1 . . . . . . 2 21 2 19 . . 8 Utility 14 | . . . . 1 . . . 1 . 1 1 . . . . . 1 3 . 1 1 . 4 Weapon 29 | . . . . 1 . . . . . . . . . . 1 . 1 10 . 10 1 1 4 Highest Loss Streak 23 | . . . . 1 . . . 2 1 1 1 . . . 1 . 2 21 3 23 1 1 13 Average Slot Usage (%) 75 | . 28 28 49 74 71 72 71 74 79 83 66 66 66 83 87 91 93 87 84 79 71 67 57 Engine 1 | . . . . 2 3 . . 5 6 6 . . . . . . . . . . 1 . . Core 1 | . . . . . 5 9 9 . . . . . . . . . . . . . 3 4 1 Reactor 2 | . . . . . . . . . . . 5 6 6 5 5 5 5 4 5 4 2 4 4 Treads 29 | . 28 28 28 28 26 27 27 30 37 39 26 26 26 34 35 38 36 31 5 13 15 26 25 Leg 3 | . . . . . . . . . 1 . . . . . . . 5 9 37 26 3 . . Wheel 1 | . . . . . . . . . . . . . . . . . . . . . 13 4 3 Device 5 | . . . . . 1 9 9 6 2 6 5 6 6 5 5 5 4 4 5 9 8 8 6 Storage 5 | . . . 20 15 10 9 9 7 6 6 6 6 6 5 5 5 5 5 5 4 1 . . Processor 4 | . . . . . . 1 9 8 10 6 2 . . 1 5 5 5 5 5 2 2 4 3 Protection 4 | . . . . 12 7 . . 3 6 6 9 13 13 8 5 5 5 3 . . . . . Energy Gun 1 | . . . . 8 . . . . . . . . . . . . . . 5 1 8 4 . Ballistic Gun 9 | . . . . . 9 8 8 7 6 8 5 6 6 18 22 23 21 18 10 9 . . . Naked Turns 87 | . . . . . . . . . . . . . . . . . . . . 1 22 . 64 Heaviest Build 89 | . . . 80 18 33 29 29 59 59 63 82 82 82 89 81 81 84 81 67 79 76 74 80 Greatest Support 535 | 20 3 3 40 40 65 65 65 93 141 147 216 216 216 271 268 268 238 270 180 175 263 415 535 Greatest Overweight (x) 6 | . . . 1 . . . . . . . . . . . . . . 6 . 6 2 3 3 Average Overweight (x) . | . . . . . . . . . . . . . . . . . . . . . . 2 2 Largest Inventory Capacity 24 | 4 4 4 24 8 8 8 8 12 12 12 12 12 12 12 12 12 12 12 12 12 10 4 4 Average Capacity 9 | 4 4 4 7 8 8 8 8 8 12 12 12 12 12 12 12 12 12 12 12 11 5 4 4 Most Carried 12 | . . 2 8 8 8 6 8 9 12 12 12 12 12 12 12 12 12 12 10 12 4 4 3 Average Carried 8 | . . . 6 7 5 5 7 7 10 11 11 11 12 11 10 10 10 10 9 9 3 2 2 Final Capacity 12 | 4 4 4 8 8 8 8 8 12 12 12 12 12 12 12 12 12 12 12 12 12 4 4 4 Final Carried 12 | . . 2 8 8 6 6 8 9 12 12 12 12 12 12 10 12 12 10 10 12 4 4 3 Class Distribution -------------------- 48% | Scavenger-Skirmisher 18% | Mutant 14% | Scavenger-Mutant 11% | Scavenger-Tank 3% | Skirmisher Dominant Class ---------------- Mutant | -10/Materials Mutant | -10/Mines Mutant | -10/Exiles Mutant | -9/Mines Scavenger-Skirmisher | -8/Materials Scavenger-Skirmisher | -8/Garrison Scavenger-Skirmisher | -8/Materials Skirmisher | -7/Factory Scavenger-Skirmisher | -6/Factory Scavenger-Skirmisher | -6/Extension Scavenger-Tank | -6/Cetus Scavenger-Tank | -6/Archives Scavenger-Tank | -6/Hub_04(d) Scavenger-Tank | -5/Factory Scavenger-Skirmisher | -5/Garrison Scavenger-Skirmisher | -5/Factory Scavenger-Skirmisher | -5/Garrison Scavenger-Skirmisher | -4/Factory Scavenger-Skirmisher | -4/Garrison Scavenger-Mutant | -4/Factory Scavenger-Mutant | -3/Research Mutant | -2/Research Mutant | -1/Access Resources | -11 -10 -10 -10 -9 -8 -8 -8 -7 -6 -6 -6 -6 -6 -5 -5 -5 -5 -4 -4 -4 -3 -2 -1 ----------- Run | Scr Mat Min Exi Min Mat Gar Mat Fac Fac Ext Cet Arc Hub Fac Gar Fac Gar Fac Gar Fac Res Res Acc Matter Collected 16002 | 79 . 141 60 55 621 473 320 973 1252 1561 1590 285 270 985 468 370 730 2876 203 933 921 469 367 Remotely . | . . . . . . . . . . . . . . . . . . . . . . . . Salvage Created 25565 | . . . . 168 674 584 377 1295 2121 2285 2088 475 730 1638 870 481 1181 5588 169 1195 1516 1093 1037 Parts 1139 | . . . . 8 33 36 25 67 119 92 80 29 37 91 33 30 50 244 7 39 61 24 34 Haulers Intercepted 12 | . . . . . . . 2 3 1 3 . . . . . . . 2 . 1 . . . Recyclers Shooed 22 | . . . . 1 . . . . 3 1 . . 1 . . 1 . 7 . 2 3 2 1 Parts Field Recycled . | . . . . . . . . . . . . . . . . . . . . . . . . Retrieved Matter . | . . . . . . . . . . . . . . . . . . . . . . . . Parts Self-Destructed . | . . . . . . . . . . . . . . . . . . . . . . . . Prevented . | . . . . . . . . . . . . . . . . . . . . . . . . Kills | -11 -10 -10 -10 -9 -8 -8 -8 -7 -6 -6 -6 -6 -6 -5 -5 -5 -5 -4 -4 -4 -3 -2 -1 ------- Run | Scr Mat Min Exi Min Mat Gar Mat Fac Fac Ext Cet Arc Hub Fac Gar Fac Gar Fac Gar Fac Res Res Acc Combat Hostiles Destroyed 400 | . . . . 4 13 16 6 21 25 26 35 4 4 28 16 10 21 70 3 20 32 21 25 Melee 5 | . . . . 2 1 . . . . . . . . . . . . . . . . . 2 Guns 290 | . . . . . 12 10 6 21 22 23 35 4 4 28 16 10 21 51 2 7 13 5 . Cannons 17 | . . . . 1 . . . . . 3 . . . . . . . . . . . 8 5 AOE 84 | . . . . . . 6 . . 3 . . . . . . . . 19 1 11 19 8 17 Classes Destroyed 19 | . . . . 2 7 . 2 2 2 1 . . . . 1 . . 2 . . . . . Worker 28 | . . . . . 1 . . . 8 . . . 5 . . . . 5 . 3 2 2 2 Builder 28 | . . . . . 1 . 1 . 3 5 . . 2 1 . 1 . 9 . 2 1 1 1 Tunneler 3 | . . . . . . . . . 1 . . . . . . . . 1 . . 1 . . Hauler 12 | . . . . . . . 2 3 1 3 . . . . . . . 2 . 1 . . . Recycler 25 | . . . . . . . 1 . 4 2 . . 2 . . . . 10 . 2 2 1 1 Mechanic 2 | . . . . . . . . . . . . . . . . . . 1 . . 1 . . Operator 8 | . . . . . 1 . . . . 1 . 4 1 1 . . . . . . . . . Watcher 12 | . . . . . 1 . . 1 1 2 2 . 1 1 . . . 2 . . 1 . . Swarmer 55 | . . . . . 2 4 3 . 3 3 3 . . 8 4 5 5 9 . . . . 6 Saboteur 4 | . . . . . . . . . 1 . . . . . . . . . . 1 . 1 1 Grunt 179 | . . . . 3 9 7 2 13 11 11 19 . 3 5 8 . 8 29 3 13 20 5 10 Brawler 20 | . . . . 1 . . . . . . 1 . . 2 1 . 2 4 . 2 2 2 3 Duelist 14 | . . . . . . . . 1 . 1 1 . . . . . 2 1 . . 4 3 1 Protector 2 | . . . . . . . . . . . . . . . . . . 2 . . . . . Sentry 42 | . . . . . 1 . 1 4 3 6 . 4 1 6 . 3 1 7 . 1 1 1 2 Specialist 1 | . . . . . . . . . . . . . . . 1 . . . . . . . . Hunter 35 | . . . . . 1 5 . 1 4 3 3 . . 1 2 . 3 6 . 2 . 4 . Programmer 37 | . . . . . . . . 2 3 . 1 . . 6 . 2 . 10 . 1 5 5 2 Behemoth 4 | . . . . . . . . . . 2 . . . . . . . 2 . . . . . Cetus Guard 7 | . . . . . . . . . . . 7 . . . . . . . . . . . . Thug 1 | . . . . . . . . . . 1 . . . . . . . . . . . . . Savage 1 | . . . . . . . . . . 1 . . . . . . . . . . . . . Best Kill Streak 16 | . . . . 2 5 5 8 4 12 7 7 4 10 6 4 5 9 16 3 8 10 14 11 Combat Bots Only 11 | . . . . 2 5 5 3 4 5 5 7 4 3 5 4 4 9 11 3 7 8 11 10 Max Kills in Single Turn 6 | . . . . 1 1 3 1 2 5 2 1 1 6 3 2 2 3 4 1 3 2 4 4 Gunslinging 2 | . . . . . . . . . . . . . . 1 1 1 2 1 . . . . . Exploded 4 | . . . . . . 3 . . 3 . . . . . . . . 3 1 3 2 4 4 Melee 1 | . . . . 1 1 . . . . . . . . . . . . . . . . . 1 Uniques/NPCs Destroyed 1 | . . . . . . . . . . . 1 . . . . . . . . . . . . Revision 17 (-6/Cetus) Combat | -11 -10 -10 -10 -9 -8 -8 -8 -7 -6 -6 -6 -6 -6 -5 -5 -5 -5 -4 -4 -4 -3 -2 -1 -------- Run | Scr Mat Min Exi Min Mat Gar Mat Fac Fac Ext Cet Arc Hub Fac Gar Fac Gar Fac Gar Fac Res Res Acc Damage Taken 29410 | . 97 . . 301 310 144 114 397 461 986 1122 142 294 1405 918 715 1397 6354 591 3675 855 1826 7306 Core 3069 | . 21 . . 76 15 23 . 40 20 42 17 25 18 75 . 68 99 228 26 480 46 133 1617 Absorbed by Shields 95 | . . . . . . . . . . . . . . . 95 . . . . . . . . Reduced by Siege Mode 561 | . . . . . . . . . . . 15 . . 23 . . . . . . . 155 368 Core Remaining (%) 81 | 100 . . . 61 . . 93 94 . . . . 85 . . . 75 . . 36 96 90 . Volleys Fired 1084 | . . . . 7 39 28 18 59 70 91 96 19 18 60 32 20 34 170 15 61 110 66 71 Largest 4 | . . . . 2 1 1 1 1 1 4 1 1 1 4 4 4 4 4 3 4 1 1 2 Hottest 240 | . . . . 96 60 60 60 60 60 126 240 60 60 136 136 136 136 138 133 158 94 120 185 Shots Fired 1905 | . . . . 9 39 28 18 59 70 151 96 19 18 126 99 80 126 578 24 112 110 66 77 Gun 1664 | . . . . 4 39 20 18 59 70 130 96 19 18 126 99 80 123 559 16 81 84 23 . Cannon 132 | . . . . 5 . . . . . 20 . . . . . . . . . 14 3 29 61 Launcher 109 | . . . . . . 8 . . . 1 . . . . . . 3 19 8 17 23 14 16 Special . | . . . . . . . . . . . . . . . . . . . . . . . . Kinetic 1566 | . . . . . 39 20 18 59 70 150 95 19 18 126 99 80 123 554 11 70 3 1 11 Thermal 207 | . . . . . . . . . . . 1 . . . . . . 5 5 11 84 51 50 Explosive 109 | . . . . . . 8 . . . 1 . . . . . . 3 19 8 17 23 14 16 Electromagnetic 23 | . . . . 9 . . . . . . . . . . . . . . . 14 . . . Robot Hit Streak 81 | . . . . 4 16 9 14 37 19 39 48 11 10 38 11 17 18 81 3 14 15 12 33 Robot Miss Streak 7 | . . . . 2 5 6 7 3 3 7 4 3 4 6 2 3 3 3 3 4 3 1 1 Penetration Max 1 | . . . . . . . . . . 1 . . . 1 1 1 1 1 . 1 . . . Secondary Targets 36 | . . . . . . . . . . . . . . 3 5 4 8 15 . 1 . . . Max Gunslinging Chain 3 | . . . . . . . . . . . . . . 2 1 1 3 2 . 1 . . . Capacitor 184 | . . . . . . . . . . . . . . . . . . . . 14 80 45 45 Shots Hit Robots 1466 | . . . . 6 34 20 17 55 61 128 95 19 18 104 69 59 95 437 4 74 67 49 55 Core Hits 1152 | . . . . 5 26 28 12 46 74 87 100 23 24 63 30 21 45 240 7 77 97 69 78 Critical Hits 132 | . . . . . . . . . . 4 . . . 15 11 13 14 43 1 3 21 6 1 Critical Kills 45 | . . . . . . . . . . 2 . . . 6 3 4 5 15 1 . 6 3 . Critical Parts Destroyed 72 | . . . . . . . . . . 2 . . . 9 7 7 8 21 . 3 13 1 1 Melee Attacks . | . . . . . . . . . . . . . . . . . . . . . . . . Impact . | . . . . . . . . . . . . . . . . . . . . . . . . Slashing . | . . . . . . . . . . . . . . . . . . . . . . . . Piercing . | . . . . . . . . . . . . . . . . . . . . . . . . Sneak Attacks . | . . . . . . . . . . . . . . . . . . . . . . . . Combat Hostiles . | . . . . . . . . . . . . . . . . . . . . . . . . Follow-up Attacks . | . . . . . . . . . . . . . . . . . . . . . . . . Damage Inflicted 73650 | . . . . 149 1713 1423 686 2734 4389 5326 5904 1165 1528 3600 1767 1356 2574 14838 312 5579 6891 4890 6826 Guns 46196 | . . . . 40 1701 1023 686 2723 3652 4834 5904 1165 937 3600 1767 1356 2574 10448 61 1166 2020 539 . Cannons 4296 | . . . . 97 . . . . . 492 . . . . . . . . . 505 109 980 2113 Explosions 23041 | . . . . . . 400 . . 737 . . . 591 . . . . 4390 237 3908 4762 3345 4671 Melee . | . . . . . . . . . . . . . . . . . . . . . . . . Ramming 117 | . . . . 12 12 . . 11 . . . . . . . . . . 14 . . 26 42 Kinetic 44305 | . . . . . 1701 1023 686 2723 3652 5326 5904 1165 937 3600 1767 1356 2574 10335 61 965 109 33 388 Thermal 5545 | . . . . . . . . . . . . . . . . . . 113 . 201 2020 1486 1725 Explosive 22327 | . . . . . . 400 . . 737 . . . . . . . . 4390 237 3908 4762 3222 4671 Electromagnetic 1356 | . . . . 137 . . . . . . . . 591 . . . . . . 505 . 123 . Impact . | . . . . . . . . . . . . . . . . . . . . . . . . Slashing . | . . . . . . . . . . . . . . . . . . . . . . . . Piercing . | . . . . . . . . . . . . . . . . . . . . . . . . Highest Corruption 11 | . . . . 1 . . . 2 . . . . 2 6 10 11 11 1 1 5 2 2 6 Average Corruption 4 | . . . . 1 . . . 1 . . . . 2 5 8 10 11 1 1 1 1 1 5 Corruption Purged . | . . . . . . . . . . . . . . . . . . . . . . . . Effects 179 | . . . . 1 . . . 6 . . . . 1 27 31 16 47 8 1 8 10 2 21 Message Errors 38 | . . . . 1 . . . 4 . . . . 1 5 4 2 8 3 . 2 3 . 5 Matter Fused 26 | . . . . . . . . . . . . . . 7 4 5 6 . . 1 . . 3 Heat Flow Errors 15 | . . . . . . . . . . . . . . 3 2 1 4 . . . 1 . 4 Energy Discharges 15 | . . . . . . . . 1 . . . . . 5 1 . . 1 . 1 5 1 . Parts Rejected 1 | . . . . . . . . . . . . . . . . . 1 . . . . . . Data Loss (minor) 20 | . . . . . . . . . . . . . . 3 5 3 3 1 . 2 . 1 2 Data Loss (major) 7 | . . . . . . . . . . . . . . 1 2 1 2 . . . . . 1 Misfires 4 | . . . . . . . . . . . . . . . . . 3 . . . . . 1 Alerts 2 | . . . . . . . . . . . . . . . 2 . . . . . . . . Misdirections 7 | . . . . . . . . . . . . . . . 4 . 3 . . . . . . Targeting Errors 38 | . . . . . . . . 1 . . . . . 3 6 4 14 2 . 2 1 . 5 Weapon Failures 6 | . . . . . . . . . . . . . . . 1 . 3 1 1 . . . . Overload Shots 1 | . . . . . . . . . . . 1 . . . . . . . . . . . . Overflow Damage 1135 | . . . . . . . . . . 1 . . 3 . . . . 220 . 259 294 105 253 Projectiles 131 | . . . . . . . . . . 1 . . . . . . . . . 46 4 49 31 Explosions 1004 | . . . . . . . . . . . . . 3 . . . . 220 . 213 290 56 222 Melee . | . . . . . . . . . . . . . . . . . . . . . . . . Knockbacks 9 | . . . . . . . . . . 3 . . . . . . . . . . 2 1 3 Impact . | . . . . . . . . . . . . . . . . . . . . . . . . Kinetic 8 | . . . . . . . . . . 3 . . . . . . . . . . 2 1 2 Secondary 1 | . . . . . . . . . . . . . . . . . . . . . . . 1 Self-Inflicted Damage 767 | . . . . . . . . . . . . . 105 . . . 33 . 17 313 2 44 253 Shots 17 | . . . . . . . . . . . . . 1 . . . 1 . 1 5 1 2 6 Rammed 21 | . . . . 6 3 . . 3 . . . . . . . . . . . . . 4 5 Targets Rammed 28 | . . . . 8 4 . . 3 . . . . . . . . . . 2 . . 4 7 Kicked 2 | . . . . . . . . . . . . . . . . . . . 2 . . . . Crushed 5 | . . . . 2 1 . . . . . . . . . . . . . . . . . 2 Highest Temperature 421 | . . . . 69 421 97 150 218 258 180 243 144 144 212 242 223 246 76 3 180 320 310 315 Average Temperature 84 | . . . . 26 132 36 46 60 78 52 79 48 45 57 112 106 123 13 3 47 96 103 143 Received Heat Transfer 3960 | . . . . 135 144 9 27 123 111 213 225 27 60 99 150 54 90 951 132 513 96 180 621 Effects 5 | . . . . . 1 . . . . . . . . . . . . . . . 1 2 1 Shutdowns 1 | . . . . . 1 . . . . . . . . . . . . . . . . . . Energy Bleed 1 | . . . . . . . . . . . . . . . . . . . . . . . 1 Interference 3 | . . . . . . . . . . . . . . . . . . . . . 1 2 . Siege Activations 6 | . . . . . . . . . . . 2 . . 1 . . . . . . . 2 1 Total Turns 135 | . . . . . . . . . . . 49 . . 10 . . . . . . . 51 25 Longest Duration 39 | . . . . . . . . . . . 39 . . 10 . . . . . . . 29 25 Robots Corrupted 4 | . . . . 1 . . . . . . . . . . . . . . . 3 . . . Combat Hostiles 3 | . . . . 1 . . . . . . . . . . . . . . . 2 . . . Parts Fried 12 | . . . . 2 . . . . . . . . 5 . . . . . . 5 . . . Impact Corruptions . | . . . . . . . . . . . . . . . . . . . . . . . . Robots Melted 1 | . . . . . . . . . . . . . . . . . . . . . . . 1 Combat Hostiles 1 | . . . . . . . . . . . . . . . . . . . . . . . 1 Parts Melted 11 | . . . . . . . . 1 . . . . . . . . . . . 1 2 1 6 Heat Transferred 5678 | . . . . . . . . . . . . . . . . . . 111 . 222 2442 1480 1423 Parts Sabotaged 7 | . . . . . . . . . . . . . . . . . . 3 . 4 . . . Parts Stolen . | . . . . . . . . . . . . . . . . . . . . . . . . Parts Stripped . | . . . . . . . . . . . . . . . . . . . . . . . . Power Chain Reactions . | . . . . . . . . . . . . . . . . . . . . . . . . Missiles Intercepted . | . . . . . . . . . . . . . . . . . . . . . . . . Alert | -11 -10 -10 -10 -9 -8 -8 -8 -7 -6 -6 -6 -6 -6 -5 -5 -5 -5 -4 -4 -4 -3 -2 -1 ------- Run | Scr Mat Min Exi Min Mat Gar Mat Fac Fac Ext Cet Arc Hub Fac Gar Fac Gar Fac Gar Fac Res Res Acc Peak Influence 2258 | . 30 11 . 110 509 776 600 688 1227 969 1014 612 614 685 839 811 1110 2258 1666 1764 2042 1836 1876 Initial 1580 | . . 11 . . 42 220 378 273 333 600 501 405 214 300 479 440 567 577 1580 1100 1100 1148 1100 Average 846 | . 13 11 . 61 282 539 542 520 705 807 723 549 368 471 680 591 932 1243 1639 1503 1334 1331 1356 Maximum Alert Level 5 | . . . . . 2 3 2 2 4 3 3 2 2 2 3 3 4 5 5 5 5 5 5 Low Security (%) 4 | 100 100 100 . 100 39 . . . . . . . . . . . . . . . . . . Level 1 11 | . . . . . 37 30 5 14 40 . . . 68 36 . . . . . . . . . Level 2 29 | . . . . . 23 37 94 85 8 26 44 100 31 63 38 77 23 7 . . . . . Level 3 23 | . . . . . . 32 . . 35 73 55 . . . 61 22 28 38 . . 19 . . Level 4 22 | . . . . . . . . . 15 . . . . . . . 48 37 21 61 58 83 76 Level 5 4 | . . . . . . . . . . . . . . . . . . 16 7 23 18 . . High Security 3 | . . . . . . . . . . . . . . . . . . . 70 14 3 17 23 Max Security . | . . . . . . . . . . . . . . . . . . . . . . . . Squads Dispatched 94 | . . . . . 5 . . 7 9 3 2 . 3 4 . 3 . 17 . 12 8 11 10 Investigation 18 | . . . . . 1 . . 2 2 1 2 . 1 1 . . . 2 . 2 1 1 2 Extermination 15 | . . . . . . . . 2 1 . . . . 3 . 1 . 3 . 1 2 1 1 Reinforcement 16 | . . . . . 1 . . 1 2 2 . . 2 . . . . 4 . 3 1 . . Assault 32 | . . . . . . . . . 3 . . . . . . 1 . 5 . 6 4 6 7 Garrison 13 | . . . . . 3 . . 2 1 . . . . . . 1 . 3 . . . 3 . Intercept . | . . . . . . . . . . . . . . . . . . . . . . . . Construction Impeded 5 | . . . . . 1 . . . 1 . . . . . . . . 2 . 1 . . . Haulers Reinforced 5 | . . . . . . . . 1 1 . . . . . . . . 2 . 1 . . . Stealth | -11 -10 -10 -10 -9 -8 -8 -8 -7 -6 -6 -6 -6 -6 -5 -5 -5 -5 -4 -4 -4 -3 -2 -1 --------- Run | Scr Mat Min Exi Min Mat Gar Mat Fac Fac Ext Cet Arc Hub Fac Gar Fac Gar Fac Gar Fac Res Res Acc Distress Signals 17 | . 2 . . . . . . 1 . 3 2 . 1 . . . . 4 . 1 2 1 . Communications Jammed . | . . . . . . . . . . . . . . . . . . . . . . . . Distress Signals . | . . . . . . . . . . . . . . . . . . . . . . . . Times Spotted 519 | . 5 . . 5 17 12 6 25 23 34 39 13 9 29 14 12 21 81 6 46 43 32 47 Peak Tracking Total 20 | . 5 . . 2 3 2 3 5 5 4 8 1 5 6 5 4 7 7 4 20 6 10 11 Tactical Retreats 21 | . 1 . . 1 . 1 . . 2 2 . . 1 . . 2 1 4 . 3 . . 3 Traps | -11 -10 -10 -10 -9 -8 -8 -8 -7 -6 -6 -6 -6 -6 -5 -5 -5 -5 -4 -4 -4 -3 -2 -1 ------- Run | Scr Mat Min Exi Min Mat Gar Mat Fac Fac Ext Cet Arc Hub Fac Gar Fac Gar Fac Gar Fac Res Res Acc Traps Triggered 13 | . 1 . . . . . . . . . . . . . 1 . 3 2 . 1 5 . . Indirectly . | . . . . . . . . . . . . . . . . . . . . . . . . Trap Hack Attempts . | . . . . . . . . . . . . . . . . . . . . . . . . Triggered . | . . . . . . . . . . . . . . . . . . . . . . . . Disarmed . | . . . . . . . . . . . . . . . . . . . . . . . . Reprogrammed . | . . . . . . . . . . . . . . . . . . . . . . . . Reused . | . . . . . . . . . . . . . . . . . . . . . . . . Traps Extracted . | . . . . . . . . . . . . . . . . . . . . . . . . Installed . | . . . . . . . . . . . . . . . . . . . . . . . . Triggered . | . . . . . . . . . . . . . . . . . . . . . . . . Machines | -11 -10 -10 -10 -9 -8 -8 -8 -7 -6 -6 -6 -6 -6 -5 -5 -5 -5 -4 -4 -4 -3 -2 -1 ---------- Run | Scr Mat Min Exi Min Mat Gar Mat Fac Fac Ext Cet Arc Hub Fac Gar Fac Gar Fac Gar Fac Res Res Acc Machines Disabled 73 | . . . . . 4 4 . 4 20 1 6 3 5 2 . 1 1 9 . 8 1 2 2 Max in Single Turn 6 | . . . . . 2 2 . 1 6 1 1 1 5 1 . 1 1 2 . 4 1 1 1 Garrison Access 4 | . . . . . . . . . 1 . . . . 1 . . . 1 . . . . 1 Network Hub 1 | . . . . . . . . . . . . . 1 . . . . . . . . . . Machines Sabotaged . | . . . . . . . . . . . . . . . . . . . . . . . . Garrisons Compromised . | . . . . . . . . . . . . . . . . . . . . . . . . Overloaded Fab Kills . | . . . . . . . . . . . . . . . . . . . . . . . . Fab Network Shutdowns . | . . . . . . . . . . . . . . . . . . . . . . . . Hacking | -11 -10 -10 -10 -9 -8 -8 -8 -7 -6 -6 -6 -6 -6 -5 -5 -5 -5 -4 -4 -4 -3 -2 -1 --------- Run | Scr Mat Min Exi Min Mat Gar Mat Fac Fac Ext Cet Arc Hub Fac Gar Fac Gar Fac Gar Fac Res Res Acc Machines Accessed 45 | . 1 . 1 . 2 . 1 5 3 5 3 . 1 8 . 2 . 3 . 1 3 2 4 Terminals 33 | . 1 . . . 1 . 1 3 2 5 3 . 1 6 . 1 . 1 . 1 3 1 3 Fabricators 4 | . . . . . . . . 2 1 . . . . . . . . . . . . 1 . Repair Stations . | . . . . . . . . . . . . . . . . . . . . . . . . Recycling Units . | . . . . . . . . . . . . . . . . . . . . . . . . Scanalyzers . | . . . . . . . . . . . . . . . . . . . . . . . . Garrison Access 7 | . . . . . 1 . . . . . . . . 2 . 1 . 2 . . . . 1 Total Hacks 108 | . 4 . 1 . 4 . 3 22 10 10 10 . 2 13 . 3 . 6 . 2 8 3 7 Successful 38 | . 1 . 1 . 3 . 2 10 3 2 3 . 2 4 . 2 . 2 . . 1 1 1 Failed 70 | . 3 . . . 1 . 1 12 7 8 7 . . 9 . 1 . 4 . 2 7 2 6 Catastrophic 24 | . 1 . . . . . . 3 2 1 1 . . 3 . 1 . 3 . 1 4 1 3 Database Lockouts . | . . . . . . . . . . . . . . . . . . . . . . . . Manual 46 | . 4 . 1 . 3 . 3 17 4 2 . . 1 9 . . . . . . 1 1 . Terminals 88 | . 4 . . . 3 . 3 14 8 10 10 . 2 11 . 2 . 4 . 2 8 1 6 Fabricators 12 | . . . . . . . . 8 2 . . . . . . . . . . . . 2 . Repair Stations . | . . . . . . . . . . . . . . . . . . . . . . . . Recycling Units . | . . . . . . . . . . . . . . . . . . . . . . . . Scanalyzers . | . . . . . . . . . . . . . . . . . . . . . . . . Garrison Access 7 | . . . . . 1 . . . . . . . . 2 . 1 . 2 . . . . 1 Terminal Hacks 20 | . 1 . 1 . 2 . 2 5 1 2 3 . 1 . . 1 . . . . 1 . . Record 3 | . . . . . . . . . . . 3 . . . . . . . . . . . . Part Schematic 6 | . . . . . 1 . 1 3 . 1 . . . . . . . . . . . . . Robot Analysis 3 | . . . . . . . . 1 . . . . 1 . . 1 . . . . . . . Open Door 2 | . . . . . . . . . 1 1 . . . . . . . . . . . . . Branch Access Points 3 | . 1 . . . . . 1 . . . . . . . . . . . . . 1 . . Terminal Index 1 | . . . . . 1 . . . . . . . . . . . . . . . . . . Fabricator Index 1 | . . . . . . . . 1 . . . . . . . . . . . . . . . EX-Prototype ID Bank 1 | . . . 1 . . . . . . . . . . . . . . . . . . . . Fabricator Hacks 4 | . . . . . . . . 4 . . . . . . . . . . . . . . . Load Schematic 2 | . . . . . . . . 2 . . . . . . . . . . . . . . . Build 2 | . . . . . . . . 2 . . . . . . . . . . . . . . . Repair Station Hacks . | . . . . . . . . . . . . . . . . . . . . . . . . Recycling Unit Hacks . | . . . . . . . . . . . . . . . . . . . . . . . . Scanalyzer . | . . . . . . . . . . . . . . . . . . . . . . . . Garrison Access Hacks 7 | . . . . . 1 . . . . . . . . 2 . 1 . 2 . . . . 1 Unlock Access 4 | . . . . . 1 . . . . . . . . 1 . 1 . 1 . . . . . Seal Access 3 | . . . . . . . . . . . . . . 1 . . . 1 . . . . 1 Unauthorized Hacks 7 | . . . . . . . . 1 2 . . . 1 2 . . . . . . . 1 . Terminals 6 | . . . . . . . . . 2 . . . 1 2 . . . . . . . 1 . Assimilate 1 | . . . . . . . . . . . . . . 1 . . . . . . . . . Botnet 1 | . . . . . . . . . 1 . . . . . . . . . . . . . . Operators 3 | . . . . . . . . . 1 . . . 1 1 . . . . . . . . . Search 1 | . . . . . . . . . . . . . . . . . . . . . . 1 . Fabricators 1 | . . . . . . . . 1 . . . . . . . . . . . . . . . Prioritize 1 | . . . . . . . . 1 . . . . . . . . . . . . . . . Repair Stations . | . . . . . . . . . . . . . . . . . . . . . . . . Recycling Units . | . . . . . . . . . . . . . . . . . . . . . . . . Scanalyzers . | . . . . . . . . . . . . . . . . . . . . . . . . Garrison Access . | . . . . . . . . . . . . . . . . . . . . . . . . Data Cores Recovered 2 | . . . . . 1 . . . . . . . . . . . . . . . 1 . . Used 2 | . . . . . 1 . . . . . . . . . . . . . . . 1 . . Hacking Detections 34 | . 1 . . . 1 . 1 5 2 4 3 . 1 6 . 1 . 1 . 1 3 1 3 Full Trace Events 14 | . . . . . 1 . . 2 2 1 2 . . 1 . . . 1 . 1 1 . 2 Feedback Events 1 | . . . . . . . . 1 . . . . . . . . . . . . . . . Corruption 1 | . . . . . . . . 1 . . . . . . . . . . . . . . . Feedback Blocked . | . . . . . . . . . . . . . . . . . . . . . . . . Robot Schematics Acquired . | . . . . . . . . . . . . . . . . . . . . . . . . Robots Built . | . . . . . . . . . . . . . . . . . . . . . . . . Matter . | . . . . . . . . . . . . . . . . . . . . . . . . Time . | . . . . . . . . . . . . . . . . . . . . . . . . Total Robot Build Rating . | . . . . . . . . . . . . . . . . . . . . . . . . Part Schematics Acquired 5 | . . . . . 1 . . 3 . 1 . . . . . . . . . . . . . Parts Built 3 | . . . . . . . . 3 . . . . . . . . . . . . . . . Matter 248 | . . . . . . . . 248 . . . . . . . . . . . . . . . Time 87 | . . . . . . . . 87 . . . . . . . . . . . . . . . Total Part Build Rating 7 | . . . . . . . . 7 . . . . . . . . . . . . . . . Parts Repaired . | . . . . . . . . . . . . . . . . . . . . . . . . Time . | . . . . . . . . . . . . . . . . . . . . . . . . Parts Recycled . | . . . . . . . . . . . . . . . . . . . . . . . . Recycled Matter . | . . . . . . . . . . . . . . . . . . . . . . . . Retrieved Matter . | . . . . . . . . . . . . . . . . . . . . . . . . Retrieved Components . | . . . . . . . . . . . . . . . . . . . . . . . . Parts Scanalyzed . | . . . . . . . . . . . . . . . . . . . . . . . . Part Schematics Acquired . | . . . . . . . . . . . . . . . . . . . . . . . . Parts Damaged . | . . . . . . . . . . . . . . . . . . . . . . . . Bothacking | -11 -10 -10 -10 -9 -8 -8 -8 -7 -6 -6 -6 -6 -6 -5 -5 -5 -5 -4 -4 -4 -3 -2 -1 ------------ Run | Scr Mat Min Exi Min Mat Gar Mat Fac Fac Ext Cet Arc Hub Fac Gar Fac Gar Fac Gar Fac Res Res Acc Used RIF Installer 3 | . . . . . . 1 . . . . . . . . 1 . 1 . . . . . . Coupler Efficiency 1 | . . . . . . . . . . . . . . . . . 1 . . . . . . Command Fork 1 | . . . . . . . . . . . . . . . 1 . . . . . . . . Robots Hacked . | . . . . . . . . . . . . . . . . . . . . . . . . Non-combat . | . . . . . . . . . . . . . . . . . . . . . . . . Combat . | . . . . . . . . . . . . . . . . . . . . . . . . Robot Hacks Applied . | . . . . . . . . . . . . . . . . . . . . . . . . Relay Couplers Released 7 | . . . . . . . . . 1 . . . . . . . . 3 . . 3 . . Machine Destruction 1 | . . . . . . . . . 1 . . . . . . . . . . . . . . Programmers 6 | . . . . . . . . . . . . . . . . . . 3 . . 3 . . Robots Rewired 8 | . . . . . . . . . . 7 . . . . . . . . . 1 . . . Allies Hacked 1 | . . . . . . . . . . . . . . 1 . . . . . . . . . Hacks Repelled . | . . . . . . . . . . . . . . . . . . . . . . . . Allies | -11 -10 -10 -10 -9 -8 -8 -8 -7 -6 -6 -6 -6 -6 -5 -5 -5 -5 -4 -4 -4 -3 -2 -1 -------- Run | Scr Mat Min Exi Min Mat Gar Mat Fac Fac Ext Cet Arc Hub Fac Gar Fac Gar Fac Gar Fac Res Res Acc Total Allies 13 | . . . . . . . . . . 8 . . . 1 . . . . . 1 3 . . Largest Group 4 | . . . . . . . . . . 4 4 . . 1 . . . . . 1 3 . . Highest-Rated Group 138 | . . . . . . . . . . 136 136 . . 26 . . . . . 47 138 . . Highest-Rated Ally 47 | . . . . . . . . . . 37 37 . . 26 . . . . . 47 46 . . Total Orders . | . . . . . . . . . . . . . . . . . . . . . . . . Ally Attacks 80 | . . . . . . . . . . 8 24 . . . . . . . . 1 47 . . Total Damage 2046 | . . . . . . . . . . 177 358 . . . . . . . . 23 1488 . . Kills 10 | . . . . . . . . . . . 2 . . . . . . . . . 8 . . Allies Corrupted . | . . . . . . . . . . . . . . . . . . . . . . . . Allies Melted . | . . . . . . . . . . . . . . . . . . . . . . . . Intel | -11 -10 -10 -10 -9 -8 -8 -8 -7 -6 -6 -6 -6 -6 -5 -5 -5 -5 -4 -4 -4 -3 -2 -1 ------- Run | Scr Mat Min Exi Min Mat Gar Mat Fac Fac Ext Cet Arc Hub Fac Gar Fac Gar Fac Gar Fac Res Res Acc Robot Analysis Total 3 | . . . . . . . . 1 . . . . 1 . . 1 . . . . . . . Derelict Logs Recovered . | . . . . . . . . . . . . . . . . . . . . . . . . Drone Launches . | . . . . . . . . . . . . . . . . . . . . . . . . Drone Recoveries . | . . . . . . . . . . . . . . . . . . . . . . . . Exploration | -11 -10 -10 -10 -9 -8 -8 -8 -7 -6 -6 -6 -6 -6 -5 -5 -5 -5 -4 -4 -4 -3 -2 -1 ------------- Run | Scr Mat Min Exi Min Mat Gar Mat Fac Fac Ext Cet Arc Hub Fac Gar Fac Gar Fac Gar Fac Res Res Acc Turns Passed 16476 | 14 48 219 606 274 410 636 197 1109 1108 1398 1089 231 188 1916 633 339 699 1533 120 735 1421 700 853 Spaces Moved 9558 | 18 95 426 448 139 187 363 107 628 635 650 557 132 100 1027 311 156 332 547 63 430 1226 379 602 Core 876 | 16 95 426 111 . . . . . . . . . . . . . . . . 79 59 . 90 Treads 6148 | 2 . . 337 139 187 363 107 628 635 650 557 132 100 1027 311 156 332 429 . . 5 36 15 Legs 490 | . . . . . . . . . . . . . . . . . . 108 63 319 . . . Wheels 2044 | . . . . . . . . . . . . . . . . . . 10 . 32 1162 343 497 Hover . | . . . . . . . . . . . . . . . . . . . . . . . . Flight . | . . . . . . . . . . . . . . . . . . . . . . . . Fastest Speed 50 | 50 50 50 50 160 155 155 155 156 157 160 160 160 160 160 166 165 165 110 120 50 50 110 50 Average Speed 136 | 62 50 50 132 160 159 155 155 156 159 160 160 160 160 165 166 165 166 155 120 107 91 118 106 Slowest Speed 210 | 160 50 50 180 160 160 155 155 156 160 160 160 160 160 166 166 168 170 210 120 210 157 149 160 Overloaded Moves . | . . . . . . . . . . . . . . . . . . . . . . . . Propulsion Burnouts . | . . . . . . . . . . . . . . . . . . . . . . . . Robots Hopped . | . . . . . . . . . . . . . . . . . . . . . . . . Cave-ins Triggered . | . . . . . . . . . . . . . . . . . . . . . . . . Exploration Rate (%) 34 | 3 34 60 83 32 13 51 16 24 15 66 91 78 14 34 54 4 50 15 15 17 27 12 13 Regions Visited 23 Branch Regions 7 Pre-discovered Areas . | . . . . . . . . . . . . . . . . . . . . . . . . Known Exits Taken 6 | . 1 . . . 1 . . . . . . . 1 1 . 1 . 1 . . . . . Unknown Exits Taken 13 | 1 . 1 1 1 . . 1 1 1 1 1 1 . . . . . . . 1 1 1 . Scrap Searched 4 | . . 2 . 2 . . . . . . . . . . . . . . . . . . . Spaces Dug 161 | . . . . . 7 3 . 7 4 21 . . . . . . . 8 84 15 . 4 8 Terrain Destroyed 1664 | . . . . . 42 13 24 15 85 35 6 2 176 37 5 15 57 270 129 190 237 168 158 Melee . | . . . . . . . . . . . . . . . . . . . . . . . . Projectile 275 | . . . . . 42 . 24 15 8 21 6 2 1 37 5 15 7 68 2 2 2 8 10 AOE 1389 | . . . . . . 13 . . 77 14 . . 175 . . . 50 202 127 188 235 160 148 Terrain Rammed . | . . . . . . . . . . . . . . . . . . . . . . . . Walls Destroyed . | . . . . . . . . . . . . . . . . . . . . . . . . Machines Disabled . | . . . . . . . . . . . . . . . . . . . . . . . . Actions | -11 -10 -10 -10 -9 -8 -8 -8 -7 -6 -6 -6 -6 -6 -5 -5 -5 -5 -4 -4 -4 -3 -2 -1 --------- Run | Scr Mat Min Exi Min Mat Gar Mat Fac Fac Ext Cet Arc Hub Fac Gar Fac Gar Fac Gar Fac Res Res Acc Total 12050 | 19 94 431 459 175 297 429 140 755 727 977 759 152 128 1173 355 186 394 835 84 621 1480 604 776 Wait 818 | . . 4 . 13 50 29 1 47 7 139 61 . 11 48 10 5 . 25 . 65 76 146 81 Move 9540 | 17 94 425 447 138 187 362 106 627 634 649 556 131 99 1027 310 156 331 547 62 429 1225 379 602 Hop . | . . . . . . . . . . . . . . . . . . . . . . . . Pick Up 73 | . . 2 5 1 3 . 3 2 2 3 7 1 . 7 . 2 6 17 2 5 4 1 . Fast Attach 166 | 2 . . 3 5 4 3 3 5 5 4 12 . . 9 . 2 7 33 2 18 37 4 8 Attach 60 | . . . 1 . 2 2 . 1 2 6 1 . . 5 1 . 3 18 . 14 1 1 2 Detach 20 | . . . . . 1 2 1 . 1 7 2 . . . . . . 1 . 5 . . . Swap 53 | . . . . 1 2 . 2 5 3 10 3 . . 3 1 . 6 6 . 9 1 1 . Drop 151 | . . . 3 2 6 3 6 6 3 12 21 1 . 14 1 1 7 18 2 12 25 3 5 Fire 1084 | . . . . 7 39 28 18 59 70 91 96 19 18 60 32 20 34 170 15 61 110 66 71 Melee . | . . . . . . . . . . . . . . . . . . . . . . . . Ram 1 | . . . . . . . . . . . . . . . . . . . . . . . 1 Kick 1 | . . . . . . . . . . . . . . . . . . . 1 . . . . Crush 23 | . . . . 8 3 . . 3 . . . . . . . . . . . . . 3 6 Escape Stasis 1 | . . . . . . . . . . . . . . . . . . . . . 1 . . Rewire 59 | . . . . . . . . . . 56 . . . . . . . . . 3 . . . Trap . | . . . . . . . . . . . . . . . . . . . . . . . . Miscellaneous . | . . . . . . . . . . . . . . . . . . . . . . . . Route ------- -11/Scrapyard -10/Materials (discovered 2 exits: *Min x2) -10/Mines -10/Exiles -9/Mines -8/Materials -8/Garrison (discovered 2 exits: *Mat x2) -8/Materials -7/Factory -6/Factory (discovered 2 exits: *Fac / *Ext) -6/Extension (discovered 2 exits: *Fac / *Cet) -6/Cetus (discovered 3 exits: *Fac x2 / *Arc) -6/Archives (discovered 2 exits: *Fac / *Hub) -6/Hub_04(d) -5/Factory (discovered 4 exits: *Fac / [*Upp x2] / Gar) -5/Garrison (discovered 2 exits: *Fac x2) -5/Factory -5/Garrison -4/Factory (discovered 3 exits: *Res / [*Upp] / Gar) -4/Garrison -4/Factory -3/Research (discovered 3 exits: *Res / Tes x2) -2/Research -1/Access History --------- Turn | Location | Event 4 | -11/Scrapyard | Discovered new exit (range 15) 15 | -11/Scrapyard | Entered Materials 34 | -10/Materials | Identified exit to Mines 63 | -10/Materials | Entered Mines 67 | -10/Mines | Met a Derelict bent on vengeance 280 | -10/Mines | Deemed a non-threat by the Exiles lab entrance 280 | -10/Mines | Discovered new exit (range 5) 282 | -10/Mines | Entered Exiles 295 | -10/Exiles | Met 8R-AWN 303 | -10/Exiles | Met EX-HEX 314 | -10/Exiles | Build established: Mutant 318 | -10/Exiles | Met EX-BIN 324 | -10/Exiles | Aligned with FarCom system 324 | -10/Exiles | Given EX-Vault access code 336 | -10/Exiles | Opened EX-Vault 345 | -10/Exiles | Found XL Autogun Array 380 | -10/Exiles | Warned to stay clear of 0b10 Research branches 425 | -10/Exiles | Met EX-DEC 586 | -10/Exiles | Discovered new exit (range 10) 705 | -10/Exiles | Visited The Gauntlet 888 | -10/Exiles | Left Exiles lab with XL Autogun Array 888 | -10/Exiles | Entered Mines 1031 | -9/Mines | Received a Rocket Launcher from a helpful Derelict 1040 | -9/Mines | Discovered new exit (range 9) 1162 | -9/Mines | Entered Materials 1162 | -8/Materials | Evolved 4 slots: Propulsion x1, Utility x1, Weapon x2 1358 | -8/Materials | Garrison activated, responded to threat 1442 | -8/Materials | Identified exit to Garrison 1468 | -8/Materials | Garrison activated, responded to threat 1572 | -8/Materials | Entered Garrison 1614 | -8/Garrison | Triggered checkpoint 1644 | -8/Garrison | Build established: Scavenger-Skirmisher 1686 | -8/Garrison | Discovered new exit (range 14) 1759 | -8/Garrison | Triggered checkpoint 1864 | -8/Garrison | Triggered checkpoint 1978 | -8/Garrison | Discovered new exit (range 14) 2012 | -8/Garrison | Installed Relay Interface Framework 2042 | -8/Garrison | Triggered checkpoint 2208 | -8/Garrison | Entered Materials 2399 | -8/Materials | Discovered new exit (range 4) 2405 | -8/Materials | Entered Factory 2405 | -7/Factory | Evolved 2 slots: Propulsion x1, Utility x1 2894 | -7/Factory | Fabricated Imp. Weapon Shielding (x2) 3222 | -7/Factory | Fabricated Hcp. Storage Unit? 3290 | -7/Factory | Discovered new exit (range 8) 3323 | -7/Factory | Garrison activated, responded to threat 3411 | -7/Factory | Build established: Skirmisher 3514 | -7/Factory | Entered another Factory area 3514 | -6/Factory | Evolved 2 slots: Propulsion x2 3747 | -6/Factory | Discovered new exit (range 6) 3815 | -6/Factory | Build established: Scavenger-Skirmisher 3965 | -6/Factory | Garrison activated, responded to threat 4046 | -6/Factory | Spotted B-75 Beast 4214 | -6/Factory | First assault squad dispatched 4281 | -6/Factory | Identified exit to Factory 4593 | -6/Factory | Discovered new exit (range 10) 4622 | -6/Factory | Entered Extension 4699 | -6/Extension | Rescued a captive Derelict 5122 | -6/Extension | Disrupted transfer network 5535 | -6/Extension | Spotted B-75 Beast 5550 | -6/Extension | Destroyed B-75 Beast 5559 | -6/Extension | Spotted B-75 Beast 5569 | -6/Extension | Destroyed B-75 Beast 5814 | -6/Extension | Discovered new exit (range 16) 5816 | -6/Extension | Discovered exit to Factory (range 15) 6020 | -6/Extension | Entered Cetus 6020 | -6/Cetus | Accompanied by 4 allies 6042 | -6/Cetus | Spotted Cetus Guard 6042 | -6/Cetus | Spotted Cetus Guard 6045 | -6/Cetus | Destroyed Cetus Guard 6046 | -6/Cetus | Spotted Cetus Guard 6047 | -6/Cetus | Allies destroyed Cetus Guard 6049 | -6/Cetus | Destroyed Cetus Guard 6050 | -6/Cetus | Spotted Cetus Guard 6061 | -6/Cetus | Destroyed Cetus Guard 6346 | -6/Cetus | Destroyed 7 combat bots 6366 | -6/Cetus | Discovered new exit (range 15) 6422 | -6/Cetus | Spotted Cetus Guard 6423 | -6/Cetus | Spotted Cetus Guard 6427 | -6/Cetus | Destroyed Cetus Guard 6427 | -6/Cetus | Spotted Cetus Guard 6430 | -6/Cetus | Destroyed Cetus Guard 6433 | -6/Cetus | Destroyed Cetus Guard 6433 | -6/Cetus | Spotted Cetus Guard 6437 | -6/Cetus | Destroyed Cetus Guard 6447 | -6/Cetus | Discovered exit to Factory (range 15) 6471 | -6/Cetus | Met Revision 17 6487 | -6/Cetus | Destroyed Revision 17 6701 | -6/Cetus | Discovered exit to Factory (range 16) 6885 | -6/Cetus | Build established: Scavenger-Tank 7109 | -6/Cetus | Entered Archives 7165 | -6/Archives | Unable to access archive contents 7174 | -6/Archives | Discovered exit to Factory (range 15) 7195 | -6/Archives | Discovered new exit (range 14) 7340 | -6/Archives | Entered Hub_04(d) 7348 | -6/Hub_04(d) | Discovered exit to Factory (range 14) 7468 | -6/Hub_04(d) | Network Hub disabled 7528 | -6/Hub_04(d) | Entered Factory 7528 | -5/Factory | Evolved 2 slots: Propulsion x2 8465 | -5/Factory | Discovered new exit (range 12) 8701 | -5/Factory | Build established: Scavenger-Mutant 8835 | -5/Factory | Discovered new exit (range 9) 9058 | -5/Factory | Build established: Scavenger-Skirmisher 9091 | -5/Factory | Discovered new exit (range 11) 9444 | -5/Factory | Identified exit to Garrison 9444 | -5/Factory | Entered Garrison 9496 | -5/Garrison | Triggered checkpoint 9677 | -5/Garrison | System corruption reached 10% 9710 | -5/Garrison | Triggered checkpoint 9778 | -5/Garrison | Triggered checkpoint 9780 | -5/Garrison | Discovered new exit (range 10) 9868 | -5/Garrison | Triggered checkpoint 9939 | -5/Garrison | Discovered new exit (range 10) 9964 | -5/Garrison | Expanded RIF knowledge: Command Fork 10007 | -5/Garrison | Triggered checkpoint 10077 | -5/Garrison | Entered Factory 10337 | -5/Factory | Garrison activated, responded to threat 10377 | -5/Factory | First assault squad dispatched 10416 | -5/Factory | Identified exit to Garrison 10416 | -5/Factory | Entered Garrison 10425 | -5/Garrison | Expanded RIF knowledge: Coupler Efficiency 10472 | -5/Garrison | Triggered checkpoint 10570 | -5/Garrison | Triggered checkpoint 10577 | -5/Garrison | Triggered checkpoint 10626 | -5/Garrison | Destroyed 9 combat bots 10685 | -5/Garrison | Discovered new exit (range 10) 11115 | -5/Garrison | Entered Factory 11115 | -4/Factory | Evolved 2 slots: Propulsion x2 11365 | -4/Factory | First assault squad dispatched 11439 | -4/Factory | Spotted B-86 Titan 11459 | -4/Factory | Destroyed B-86 Titan 11830 | -4/Factory | Found Prototype Launcher 11830 | -4/Factory | Identified Mni. Smartbomb Launcher 11840 | -4/Factory | Found Mni. Smartbomb Launcher 11901 | -4/Factory | Lost 4 parts (4n) 11955 | -4/Factory | Destroyed 9 combat bots 12305 | -4/Factory | Spotted B-86 Titan 12377 | -4/Factory | Destroyed B-86 Titan 12501 | -4/Factory | Lost 21 parts (14n1u6w) 12532 | -4/Factory | Destroyed 11 combat bots 12583 | -4/Factory | Discovered new exit (range 16) 12598 | -4/Factory | Discovered new exit (range 15) 12648 | -4/Factory | Identified exit to Garrison 12648 | -4/Factory | Entered Garrison 12674 | -4/Garrison | Triggered checkpoint 12683 | -4/Garrison | High security lockdown imminent 12751 | -4/Garrison | Discovered new exit (range 10) 12763 | -4/Garrison | High security lockdown engaged 12768 | -4/Garrison | Entered Factory 12785 | -4/Factory | Found Quantum Capacitor 12799 | -4/Factory | Lost 3 parts (1p2n) 13018 | -4/Factory | First assault squad dispatched 13147 | -4/Factory | Destroyed 7 combat bots 13217 | -4/Factory | Lost 3 parts (2n1w) 13395 | -4/Factory | High security lockdown imminent 13459 | -4/Factory | Core integrity fell below 50% 13475 | -4/Factory | High security lockdown engaged 13488 | -4/Factory | Lost 23 parts (15n8w) 13499 | -4/Factory | Discovered new exit (range 8) 13503 | -4/Factory | Entered Research 13503 | -3/Research | Evolved 2 slots: Power x1, Propulsion x1 13743 | -3/Research | Allied Derelicts emerged from ambush trap array 14003 | -3/Research | First assault squad dispatched 14004 | -3/Research | Build established: Scavenger-Mutant 14173 | -3/Research | Identified exit to Testing 14708 | -3/Research | Destroyed 8 combat bots 14878 | -3/Research | High security lockdown imminent 14908 | -3/Research | Discovered new exit (range 16) 14924 | -3/Research | Entered another Research area 14924 | -2/Research | Evolved 2 slots: Propulsion x2 15054 | -2/Research | Build established: Mutant 15174 | -2/Research | First assault squad dispatched 15224 | -2/Research | Garrison activated, responded to threat 15297 | -2/Research | Destroyed 7 combat bots 15505 | -2/Research | High security lockdown imminent 15543 | -2/Research | Destroyed 11 combat bots 15585 | -2/Research | High security lockdown engaged 15621 | -2/Research | Discovered new exit (range 3) 15624 | -2/Research | Entered Access 15624 | -1/Access | Evolved 2 slots: Propulsion x2 15874 | -1/Access | First assault squad dispatched 16065 | -1/Access | Destroyed 10 combat bots 16071 | -1/Access | Lost 4 parts (2p1u1w) 16280 | -1/Access | High security lockdown imminent 16321 | -1/Access | Destroyed 9 combat bots 16360 | -1/Access | High security lockdown engaged 16386 | -1/Access | Spotted B-99 Colossus 16388 | -1/Access | Spotted B-99 Colossus 16419 | -1/Access | Core integrity fell below 50% 16430 | -1/Access | Core integrity fell below 20% 16444 | -1/Access | Lost 13 parts (1p8n3u1w) 16477 | -1/Access | Destroyed by G-73 Enforcer with Phase Gun Last Messages --------------- 16418_ Slug penetrates Reinforced Barrier. 16420_ Slug penetrates Sealed Heavy Doors. 16420_ Penetrated by Slug. 16420_ Slug penetrates Sealed Heavy Doors. 16422_ Penetrated by Slug. 16422_ Slug penetrates Sealed Heavy Doors. 16422_ Penetrated by Slug. 16422_ Slug penetrates Sealed Heavy Doors. 16429_ Penetrated by Slug. 16429_ Slug penetrates Reinforced Barrier. 16444_ System corrupted: Heat flow error (+252). 16462_ C-30 ARC bursts open, deploying its payload. 16462_ G-73 Enforcer unfolds itself. 16462_ I-47 Archangel unfolds itself. 16474_ Slammed into G-73 Enforcer. 16474_ Destabilizing: Core damaged (-32). [Achievement: 40k Club] [Achievement: 50k Club] [Achievement: Punisher] [Achievement: Rambo] Map ----- +----------------------------------------------------+ | ?????????????????????????????????????????????????? | | ?????????????????????????????????????????????????? | | ?????????????????????????????????????????????????? | | ?????????????????????????????????????????????????? | | ?????????????????????????????????????????????????? | | ?????????????????????????????????????????????????? | | ?????????????????????????????????????????????????? | | ?????????????????????????????????????????????????? | | ?????????????????????????????????????????????????? | | ?????????????????????????????????????????????????? | | ?????????????????????????????????????????????????? | | ?????????????????????????????????????????????????? | | ??????? ?????????????????????????????????????????? | | ??????# ?????????????????????????????????? ???? | | ??????# ????????????????????????????????? !#? | | ??????# ????????????????????????????????? #? | | ??????+ ???????????????????????????????" #? | | ??????# ?????????????????????????????"R //#? | | ??????# ????????????????????????????#""" //#? | | ??????# ????Y???????????????????????#"" #? | | ??????# ????????????????????????????# ?? | | ??????# #######"##########??######### !?## | | ?????# """T"""" "??" # ! ? ## | | ????# """ """" g i""?" # ? ?# | | ????# g " g""""""% """ ###+###### | | ???#g " "????"@" "" C | | ???# g " "????" "" " | | ??#g " "????" """ BB | | ??#g " "????" "?""BB | | ?# " g"""""" "??" ##########/## | | ## " g"??"BB #???# | | ???## " g "??"BB #???# | | ???# # #######"##########??#########???# | | ??## #% ## # # #??????????????# """ | | ??# # ############### ###????????????# """ | | ??# ## # ########??????????# """ | | ??## ## # ## ! #??????????# """ | | ???## # / % ## ############ """ | | ???# ## # % ## / ! + """ | | # ! ## = # #### | | # ## # #??# | | ##### # # ## # w #??# | | ????### # ## = # #??##+###### | | ??????# # #####/## ##### #???? | | ??????# # g+ p w #???? | | ??????# # ##### ##+###### #????! | | ??????# #######+########### ##??????# #??## | | ??????# #?????# ??????# #??????+ ?? / | | ?????? ?###### ####### #??????# #?### | | ?????? #??????# #?# | +----------------------------------------------------+ Best States ------------- Heat Dissipation 81 Coolant Potential 80 Energy Generation 41 Energy Capacity 1315 Matter Stores 380 Matter Capacity 400 Sight Range 16 Terrain Scan Density 10 Power Amplification 20 Base Temperature (-) 200 Armor Coverage 900 Weapon Shielding 66 Evasion (%) 50 Targeting Accuracy 12 Target Analysis 6 Core Analysis 10 Recoil Reduction 14 Energy Filtering 50 Particle Charging 30 Offensive Hacking 10 Item Schematics ----------------- Imp. Weapon Shielding | -8/Materials | Hacked Adv. Treads | -7/Factory | Hacked Hcp. Storage Unit | -7/Factory | Hacked Adv. Targeting Computer | -7/Factory | Hacked Imp. Heavy Treads | -6/Extension | Hacked Robot Schematics ------------------ None Fabricated ------------ Imp. Weapon Shielding | x2 | -7/Factory Hcp. Storage Unit | x1 | -7/Factory Alien Tech Used ----------------- None Achievements -------------- 40k Club 50k Club Dramatic Entrance Gun Specialist Most Wanted Punisher Rambo Ultimate Loadout Challenges ------------ None Game ------ Seed SuspensionExperimentalField Manual? 0 Play Time 04:07:13 Cumulative 99.6 hours Start 2021.06.09 @ 00:08:48 End 2021.06.09 @ 05:36:44 Sessions 1 Manual Loads 0 Difficulty Rogue Special Mode None Game No. 145 Rogue 145 Adventurer 0 Explorer 0 Win Type - Total 2 Types 2/0/0/0/0/0/0/0/0 Lore% 47 Gallery% 65 Achievement% 55 Wizard Run 0 Options --------- ASCII 0 Keyboard 0 Movement Mouse Keybinds 0 Fullscreen 1 Font 18/Terminus Map View 76x50 Tactical HUD 1 Map Filters NONE Filters NONE Steam 1 RUN: 5870e606-4e08-438d-9ad7-186ba577be65